bitfinex-derivatives/quotes_BNBF0:USTF0_20250710
["timestamp","ask_amount","ask_price","bid_price","bid_amount"]
[1752150379264,1.67831557,669.45,668.96,0.26000321]
[1752150379559,1.67831557,669.46,668.96,0.26000321]
[1752150380660,1.67831557,669.45,668.96,0.26000321]
[1752150381364,1.67831557,669.49,668.96,0.26000321]
[1752150381659,1.67831557,669.49,668.97,1.706]
[1752150382059,1.67831557,669.55,668.97,1.706]
[1752150382264,1.67831557,669.57,668.97,1.706]
[1752150383265,1.67831557,669.58,668.97,1.706]
[1752150384166,1.27476443,669.72,668.97,1.706]
[1752150384167,1.67831557,669.59,668.97,1.706]
[1752150385067,1.67831557,669.58,668.97,1.706]
[1752150386065,1.67831557,669.59,668.97,1.706]
[1752150386268,1.67831557,669.6,668.97,1.706]
[1752150388272,1.67831557,669.61,668.97,1.706]
[1752150390973,1.67831557,669.62,668.97,1.706]
[1752150391774,1.67831557,669.64,668.97,1.706]
[1752150391977,1.67831557,669.66,668.97,1.706]
[1752150392175,1.67831557,669.75,668.97,1.706]
[1752150392375,1.67831557,669.81,668.97,1.706]
[1752150392772,1.67831557,669.81,668.96,0.26000321]
[1752150393176,1.67831557,669.82,668.96,0.26000321]
[1752150395476,1.67831557,669.83,668.96,0.26000321]
[1752150395775,1.67831557,669.83,668.97,2.329]
[1752150397980,1.27476443,669.97,668.97,2.329]
[1752150397981,1.67831557,669.85,668.97,2.329]
[1752150399184,1.67831557,669.86,668.97,2.329]
[1752150401282,1.27476443,670.02,668.97,2.329]
[1752150401482,1.66613382,669.86,668.97,2.329]
[1752150401884,1.66613382,669.87,668.97,2.329]
[1752150402888,1.66613382,669.86,668.97,2.329]
[1752150403688,1.66613382,669.81,669.05,0.25988574]
[1752150411293,1.66613382,669.8,669.05,0.25988574]
[1752150411897,1.66613382,669.77,669.05,0.25988574]
[1752150412899,1.66613382,669.8,669.05,0.25988574]
[1752150414102,1.27189613,669.95,669.05,0.25988574]
[1752150414103,1.66613382,669.79,669.05,0.25988574]
[1752150414396,1.66613382,669.8,669.05,0.25988574]
[1752150415499,1.66613382,669.79,669.05,0.25988574]
[1752150415704,1.66613382,669.8,669.05,0.25988574]
[1752150416105,1.66613382,669.85,669.05,0.25988574]
[1752150417305,1.66613382,669.84,669.05,0.25988574]
[1752150419203,1.66613382,669.83,669.05,0.25988574]
[1752150420304,1.66613382,669.84,669.05,0.25988574]
[1752150421203,1.66613382,669.83,669.05,0.25988574]
[1752150423406,1.66613382,669.82,669.05,0.25988574]
[1752150423608,1.66613382,669.83,669.05,0.25988574]
[1752150425213,1.66613382,669.82,669.05,0.25988574]
[1752150426011,1.66613382,669.79,669.05,0.25988574]
[1752150426311,1.66613382,669.78,669.05,0.25988574]
[1752150428317,2.2351502,669.95,669.05,0.25988574]
[1752150428518,0.25989156,670.04,669.05,0.25988574]
[1752150431612,1.27028708,671.04,669.05,0.25988574]
[1752150431817,0.25973347,670.14,669.05,0.25988574]
[1752150432013,1.27028708,671.03,669.05,0.25988574]
[1752150432014,1.27028708,671.02,669.05,0.25988574]
[1752150432214,1.27028708,671.01,669.05,0.25988574]
[1752150432419,0.25973541,670.14,669.05,0.25988574]
[1752150432617,1.27028708,670.99,669.05,0.25988574]
[1752150432917,1.27028708,670.98,669.05,0.25988574]
[1752150433117,1.27028708,670.97,669.05,0.25988574]
[1752150433319,1.27028708,670.96,669.05,0.25988574]
[1752150433619,1.27028708,670.95,669.05,0.25988574]
[1752150433922,1.67105185,669.85,669.05,0.25988574]
[1752150436024,1.67105185,669.84,669.05,0.25988574]
[1752150436719,1.67105185,669.82,669.05,0.25988574]
[1752150438223,1.67105185,669.81,669.05,0.25988574]
[1752150438722,1.67105185,669.83,669.05,0.25988574]
[1752150439322,1.67105185,669.82,669.05,0.25988574]
[1752150439624,1.67105185,669.9,669.05,0.25988574]
[1752150440325,1.67105185,669.89,669.05,0.25988574]
[1752150441522,1.67105185,669.88,669.05,0.25988574]
[1752150442927,1.67105185,669.89,669.05,0.25988574]
[1752150443427,1.67105185,669.88,669.05,0.25988574]
[1752150444122,1.67105185,669.89,669.05,0.25988574]
[1752150444327,1.67105185,669.88,669.05,0.25988574]
[1752150446333,1.67105185,669.87,669.05,0.25988574]
[1752150446532,1.67105185,669.9,669.05,0.25988574]
[1752150446828,1.67105185,670.0,669.05,0.25988574]
[1752150448128,1.67105185,670.01,669.05,0.25988574]
[1752150448333,1.67105185,670.0,669.05,0.25988574]
[1752150449033,1.67105185,670.0,669.06,2.128]
[1752150450237,1.67105185,670.01,669.06,2.128]
[1752150450938,1.67105185,670.0,669.06,2.128]
[1752150451138,1.67105185,670.01,669.06,2.128]
[1752150451338,1.67105185,670.0,669.06,2.128]
[1752150452034,1.67105185,670.01,669.06,2.128]
[1752150454238,1.67105185,669.97,669.06,2.128]
[1752150455236,1.67105185,669.98,669.06,2.128]
[1752150456140,1.67105185,669.99,669.06,2.128]
[1752150456441,1.67105185,669.95,669.08,2.22905272]
[1752150456837,0.2597422,670.49,669.07,2.22905272]
[1752150456838,1.67105185,669.96,669.07,2.22905272]
[1752150457342,1.67105185,669.96,669.06,4.35705272]
[1752150457643,1.67105185,669.97,669.06,2.128]
[1752150461945,1.67105185,670.03,669.06,2.128]
[1752150463149,1.67105185,670.04,669.06,2.128]
[1752150464747,1.67105185,670.12,669.06,2.128]
[1752150465848,1.67105185,670.13,669.06,2.128]
[1752150468353,1.67105185,670.09,669.06,2.128]
[1752150470556,1.67105185,670.1,669.06,2.128]
[1752150471456,1.67105185,670.09,669.06,4.35705272]
[1752150471756,1.67105185,670.08,669.06,4.35705272]
[1752150472057,1.67105185,670.09,669.06,4.35705272]
[1752150472857,1.67105185,670.08,669.08,2.22905272]
[1752150473252,1.67105185,670.08,669.07,2.22905272]
[1752150474556,1.67105185,670.08,669.08,2.22905272]
[1752150475756,1.67105185,670.07,669.09,2.22905272]
[1752150476258,1.67105185,670.08,669.08,2.22905272]
[1752150476457,1.67105185,670.07,669.09,2.22905272]
[1752150477356,1.67105185,670.07,669.1,2.22905272]
[1752150478059,1.67105185,670.08,669.07,2.22905272]
[1752150480461,1.67105185,670.08,669.08,2.22905272]
[1752150481058,1.67105185,670.06,669.12,2.22905272]
[1752150481858,1.67105185,670.1,669.06,2.128]
[1752150482057,1.67105185,670.14,669.06,2.128]
[1752150482258,1.67105185,670.15,669.06,2.128]
[1752150484157,1.67105185,670.14,669.06,2.128]
[1752150486363,1.67105185,670.13,669.06,2.128]
[1752150487064,1.67105185,670.12,669.06,2.128]
[1752150489167,1.67105185,670.11,669.06,2.128]
[1752150489963,1.67105185,670.11,669.06,4.35705272]
[1752150490569,1.67105185,670.12,669.06,4.35705272]
[1752150490769,1.67105185,670.17,669.11,2.22905272]
[1752150490966,1.67105185,670.17,669.13,2.22905272]
[1752150491173,1.67105185,670.37,669.51,2.22905272]
[1752150491468,1.67105185,670.49,669.57,2.22905272]
[1752150491672,1.67105185,670.45,669.53,2.22905272]
[1752150492268,1.67105185,670.45,669.54,2.22905272]
[1752150492572,1.67105185,670.45,669.52,2.22905272]
[1752150493676,1.67105185,670.46,669.5,2.22905272]
[1752150494073,1.67105185,670.46,669.51,2.22905272]
[1752150494269,1.67105185,670.45,669.51,2.22905272]
[1752150494469,1.67105185,670.46,669.49,2.22905272]
[1752150495170,1.67105185,670.46,669.5,2.22905272]
[1752150495678,1.67105185,670.47,669.48,2.22905272]
[1752150496070,1.67105185,670.46,669.47,2.22905272]
[1752150496573,1.67105185,670.46,669.46,2.22905272]
[1752150497276,1.67105185,670.46,669.47,2.22905272]
[1752150497472,1.26752609,670.6,669.06,2.128]
[1752150497473,1.67105185,670.47,669.45,2.22905272]
[1752150497874,1.67105185,670.48,669.42,2.22905272]
[1752150498474,1.67105185,670.48,669.41,2.22905272]
[1752150498681,1.67105185,670.48,669.42,2.22905272]
[1752150499675,1.67105185,670.48,669.41,2.22905272]
[1752150500477,1.67105185,670.49,669.4,2.22905272]
[1752150500879,1.67105185,670.43,669.35,2.22905272]
[1752150501481,1.67105185,670.44,669.34,2.22905272]
[1752150502180,1.67105185,670.39,669.3,2.22905272]
[1752150502378,1.67105185,670.39,669.29,2.22905272]
[1752150502982,1.67105185,670.39,669.3,2.22905272]
[1752150503383,1.67105185,670.39,669.29,2.22905272]
[1752150503579,1.67105185,670.39,669.3,2.22905272]
[1752150503879,1.67105185,670.41,669.3,2.015]
[1752150505084,1.67105185,670.42,669.3,2.015]
[1752150507788,1.67105185,670.41,669.3,2.015]
[1752150508487,1.67105185,670.42,669.3,2.015]
[1752150511092,1.67105185,670.36,669.3,2.015]
[1752150512894,1.67105185,670.37,669.3,2.015]
[1752150513496,1.67105185,670.38,669.3,2.015]
[1752150513792,1.67105185,670.37,669.3,2.015]
[1752150514992,1.67105185,670.36,669.3,2.015]
[1752150515593,1.67105185,670.35,669.3,2.015]
[1752150517599,1.67105185,670.34,669.3,2.015]
[1752150517894,1.67105185,670.35,669.3,2.015]
[1752150518300,1.67105185,670.36,669.3,2.015]
[1752150520099,1.67105185,670.35,669.3,2.015]
[1752150520900,1.67105185,670.33,669.3,2.015]
[1752150521597,1.67105185,670.34,669.3,2.015]
[1752150521795,1.67105185,670.34,669.26,2.22905272]
[1752150522100,1.67105185,670.34,669.27,2.22905272]
[1752150523408,1.67105185,670.34,669.28,2.22905272]
[1752150523705,2.22806913,670.49,669.28,2.22905272]
[1752150523706,1.67105185,670.33,669.28,2.22905272]
[1752150524205,1.67105185,670.33,669.29,2.22905272]
[1752150525301,1.67105185,670.33,669.3,2.181]
[1752150526205,1.67105185,670.33,669.3,4.41005272]
[1752150526903,1.67105185,670.33,669.3,2.181]
[1752150527708,1.67105185,670.32,669.3,4.41005272]
[1752150528208,1.67105185,670.31,669.33,2.22905272]
[1752150528404,1.67105185,670.31,669.34,2.22905272]
[1752150528909,1.67105185,670.31,669.33,2.22905272]
[1752150529504,1.67105185,670.3,669.33,2.22905272]
[1752150531005,1.67105185,670.33,669.36,2.22905272]
[1752150531209,1.67105185,670.32,669.39,2.22905272]
[1752150531410,1.67105185,670.32,669.4,2.22905272]
[1752150532209,1.67105185,670.31,669.4,2.22905272]
[1752150533108,1.67105185,670.31,669.41,2.22905272]
[1752150534314,1.67105185,670.31,669.42,2.22905272]
[1752150534514,1.67105185,670.4,669.3,2.181]
[1752150536711,1.67105185,670.39,669.3,2.181]
[1752150537913,1.67105185,670.4,669.3,2.181]
[1752150538212,2.22806913,670.61,669.3,2.181]
[1752150538213,1.67105185,670.39,669.3,2.181]
[1752150540818,1.67105185,670.36,669.3,2.181]
[1752150544425,1.67105185,670.31,669.36,2.22905272]
[1752150545623,1.67105185,670.3,669.37,2.22905272]
[1752150546425,1.67105185,670.3,669.38,2.22905272]
[1752150546721,1.67105185,670.3,669.37,2.22905272]
[1752150547524,0.25971991,670.64,669.3,2.181]
[1752150547525,1.67105185,670.29,669.38,2.22905272]
[1752150547821,1.67105185,670.28,669.42,2.22905272]
[1752150548028,1.67105185,670.27,669.42,2.22905272]
[1752150548326,1.67105185,670.24,669.48,2.22905272]
[1752150548821,1.67105185,670.28,669.52,2.22905272]
[1752150549424,1.67105185,670.26,669.53,2.22905272]
[1752150550424,1.67105185,670.25,669.55,2.22905272]
[1752150551619,1.67105185,670.24,669.55,2.22905272]
[1752150552026,1.67105185,670.24,669.56,2.22905272]
[1752150553427,1.67105185,670.23,669.57,2.22905272]
[1752150554227,1.67105185,670.23,669.56,2.22905272]
[1752150554527,1.67105185,670.23,669.57,2.22905272]
[1752150556627,1.67105185,670.22,669.59,2.22905272]
[1752150557426,1.67105185,670.22,669.6,2.22905272]
[1752150557828,1.67105185,670.21,669.61,2.22905272]
[1752150558130,1.67105185,670.24,669.54,2.22905272]
[1752150560326,1.67105185,670.24,669.53,2.22905272]
[1752150560526,1.67105185,670.24,669.54,2.22905272]
[1752150561430,1.67105185,670.23,669.54,2.22905272]
[1752150562432,1.67105185,670.24,669.53,2.22905272]
[1752150563631,1.67105185,670.23,669.53,2.22905272]
[1752150564031,1.67105185,670.23,669.37,2.22905272]
[1752150564226,1.67105185,670.3,669.37,2.22905272]
[1752150566930,1.67105185,670.29,669.39,2.22905272]
[1752150567228,1.67105185,670.35,669.44,2.22905272]
[1752150568430,1.67105185,670.36,669.44,2.22905272]
[1752150568833,1.67105185,670.35,669.44,2.22905272]
[1752150569029,1.67105185,670.36,669.43,2.22905272]
[1752150569329,1.67105185,670.36,669.44,2.22905272]
[1752150569630,1.67105185,670.36,669.43,2.22905272]
[1752150572136,1.67105185,670.31,669.55,2.22905272]
[1752150573434,1.67105185,670.32,669.55,2.22905272]
[1752150573934,1.67105185,670.29,669.6,2.22905272]
[1752150575033,1.67105185,670.29,669.61,2.22905272]
[1752150575236,1.67105185,670.29,669.6,2.22905272]
[1752150575535,1.67105185,670.29,669.45,3.34357909]
[1752150575536,1.67105185,670.29,669.62,2.22905272]
[1752150576133,1.67105185,670.29,669.61,2.22905272]
[1752150577937,1.67105185,670.29,669.62,1.538]
[1752150578544,1.67105185,670.3,669.62,1.538]
[1752150578845,1.67105185,670.29,669.62,1.538]
[1752150579844,1.67492638,670.29,669.62,1.538]
[1752150580539,1.67492638,670.29,669.63,2.22905272]
[1752150580944,1.67492638,670.3,669.64,2.22905272]
[1752150582848,1.67492638,670.32,669.62,1.538]
[1752150585654,1.67472994,670.32,669.62,1.538]
[1752150585948,1.67472994,670.31,669.62,1.538]
[1752150589854,1.67472994,670.31,669.62,3.76705272]
[1752150590849,1.67472994,670.3,669.62,1.538]
[1752150592855,1.67472994,670.27,669.66,2.22905272]
[1752150593455,1.67472994,670.28,669.64,2.22905272]
[1752150594150,1.67472994,670.29,669.63,2.22905272]
[1752150594455,1.67472994,670.28,669.63,2.22905272]
[1752150594856,1.67472994,670.28,669.64,2.22905272]
[1752150595152,1.67472994,670.28,669.63,2.22905272]
[1752150595456,1.67472994,670.28,669.64,2.22905272]
[1752150595758,1.67472994,670.28,669.63,2.22905272]
[1752150597353,1.67472994,670.28,669.64,2.22905272]
[1752150597858,1.67472994,670.31,669.62,1.538]
[1752150599560,1.67472994,670.36,669.62,1.538]
[1752150599758,1.67472994,670.35,669.62,1.538]
[1752150600154,1.67472994,670.31,669.62,1.538]
[1752150601056,1.67472994,670.33,669.62,1.538]
[1752150601556,1.67472994,670.32,669.62,1.538]
[1752150603357,1.67472994,670.31,669.62,1.538]
[1752150604660,1.67472994,670.3,669.62,1.538]
[1752150605061,1.67472994,670.28,669.62,1.538]
[1752150606364,1.67472994,670.27,669.62,1.538]
[1752150606969,1.67472994,670.28,669.62,1.538]
[1752150607567,1.67472994,670.27,669.62,1.538]
[1752150607863,1.67472994,670.26,669.62,1.538]
[1752150608067,1.67472994,670.19,669.62,1.538]
[1752150608266,1.67472994,670.2,669.62,1.538]
[1752150610672,1.67472994,670.22,669.62,1.538]
[1752150617978,1.67472994,670.24,669.62,1.538]
[1752150620181,1.67472994,670.23,669.62,1.538]
[1752150620776,1.67472994,670.24,669.62,1.538]
[1752150620977,1.67472994,670.24,669.52,2.22905272]
[1752150621880,1.67472994,670.24,669.51,2.22905272]
[1752150623180,1.67472994,670.21,669.58,2.22905272]
[1752150623484,1.67472994,670.26,669.45,2.22905272]
[1752150623881,1.67472994,670.27,669.43,2.22905272]
[1752150624683,1.67472994,670.27,669.44,2.228]
[1752150624981,1.67472994,670.27,669.44,4.45705272]
[1752150625485,1.67472994,670.27,669.44,2.228]
[1752150626588,1.67472994,670.26,669.44,2.228]
[1752150627188,1.67472994,670.24,669.47,2.22905272]
[1752150627387,1.67472994,670.25,669.47,2.22905272]
[1752150627882,1.67472994,670.24,669.46,2.22905272]
[1752150628083,1.67472994,670.22,669.5,2.22905272]
[1752150628484,1.67472994,670.21,669.54,2.22905272]
[1752150630189,1.67472994,670.21,669.55,2.22905272]
[1752150630888,1.67472994,670.2,669.54,2.22905272]
[1752150632986,1.67472994,670.19,669.56,2.22905272]
[1752150633991,1.67472994,670.2,669.54,2.22905272]
[1752150634188,1.67472994,670.21,669.54,2.22905272]
[1752150635892,1.67472994,670.2,669.54,2.22905272]
[1752150636193,1.67472994,670.2,669.56,2.22905272]
[1752150636393,1.67472994,670.19,669.58,2.22905272]
[1752150637390,1.67472994,670.37,669.44,2.228]
[1752150637789,1.67472994,670.32,669.44,2.228]
[1752150638189,1.67472994,670.31,669.44,2.228]
[1752150638896,1.27499011,670.55,669.44,2.228]
[1752150638897,1.67472994,670.44,669.44,2.228]
[1752150639593,1.67472994,670.45,669.44,2.228]
[1752150640093,1.67472994,670.44,669.44,2.228]
[1752150641297,1.67472994,670.45,669.44,2.228]
[1752150642095,1.67472994,670.43,669.45,2.22905272]
[1752150642497,1.67472994,670.43,669.44,4.45705272]
[1752150642997,1.67472994,670.39,669.44,2.228]
[1752150644396,1.67472994,670.32,669.58,2.22905272]
[1752150644794,1.67472994,670.2,669.65,2.22905272]
[1752150646295,1.67472994,670.21,669.63,2.22905272]
[1752150647902,1.67472994,670.24,669.56,2.22905272]
[1752150651005,1.67472994,670.25,669.54,2.22905272]
[1752150651410,1.67472994,670.25,669.53,2.22905272]
[1752150657815,1.67472994,670.23,669.56,2.22905272]
[1752150658014,1.67472994,670.25,669.53,2.22905272]
[1752150659116,1.67472994,670.37,669.44,2.228]
[1752150659515,1.67472994,670.38,669.44,2.228]
[1752150660414,1.67472994,670.49,669.44,2.228]
[1752150660713,1.67472994,670.46,669.46,2.22905272]
[1752150661315,1.67472994,670.46,669.45,2.22905272]
[1752150662016,1.67472994,670.46,669.44,2.228]
[1752150662017,1.67472994,670.45,669.48,2.22905272]
[1752150662215,1.67472994,670.46,669.48,2.22905272]
[1752150662414,1.67472994,670.53,669.55,2.22905272]
[1752150662616,1.67472994,670.51,669.59,2.22905272]
[1752150663216,1.67472994,670.52,669.58,2.22905272]
[1752150663919,1.67472994,670.52,669.59,2.22905272]
[1752150664220,1.67472994,670.53,669.58,2.22905272]
[1752150665117,1.67472994,670.53,669.57,2.22905272]
[1752150665321,1.67472994,670.53,669.59,4.70205272]
[1752150666517,1.67472994,670.56,669.59,2.473]
[1752150667119,1.67472994,670.53,669.6,2.22905272]
[1752150667322,1.67472994,670.54,669.6,2.22905272]
[1752150667519,1.67472994,670.59,669.64,2.22905272]
[1752150667722,1.67472994,670.64,669.69,2.22905272]
[1752150667920,1.67472994,670.64,669.68,2.22905272]
[1752150668323,1.67472994,670.65,669.67,2.22905272]
[1752150669225,1.67472994,670.66,669.66,2.22905272]
[1752150669421,1.67472994,670.66,669.65,2.22905272]
[1752150670226,1.67472994,670.67,669.64,2.22905272]
[1752150671322,1.67472994,670.67,669.62,2.22905272]
[1752150672227,1.67472994,670.68,669.61,2.22905272]
[1752150673029,1.67472994,670.69,669.59,4.70205272]
[1752150673224,1.67472994,670.69,669.59,2.473]
[1752150674329,1.67472994,670.66,669.67,2.22905272]
[1752150674527,1.67472994,670.66,669.66,2.22905272]
[1752150674829,1.67472994,670.65,669.68,2.22905272]
[1752150675225,1.67472994,670.67,669.64,2.22905272]
[1752150675430,1.67472994,670.67,669.63,2.22905272]
[1752150677324,1.67472994,670.67,669.62,2.22905272]
[1752150677830,1.67472994,670.67,669.63,2.22905272]
[1752150678231,1.67472994,670.67,669.62,2.22905272]
[1752150680132,1.67472994,670.68,669.61,2.22905272]
[1752150681128,1.67472994,670.67,669.62,2.22905272]
[1752150681332,1.67472994,670.68,669.61,2.22905272]
[1752150682629,1.67472994,670.68,669.6,2.22905272]
[1752150682834,1.67472994,670.66,669.64,2.22905272]
[1752150683332,1.67472994,670.67,669.63,2.22905272]
[1752150684931,1.67472994,670.68,669.6,2.22905272]
[1752150685231,1.67472994,670.67,669.63,2.22905272]
[1752150685733,1.67472994,670.7,669.61,2.22905272]
[1752150685933,1.67472994,670.8,669.62,2.22905272]
[1752150686434,1.67472994,670.8,669.61,2.22905272]
[1752150687233,1.67472994,670.8,669.6,2.22905272]
[1752150687531,1.67472994,670.8,669.61,2.22905272]
[1752150688135,1.67472994,670.8,669.6,2.22905272]
[1752150688332,1.67472994,670.8,669.61,2.22905272]
[1752150689235,1.67472994,670.8,669.6,2.22905272]
[1752150691241,1.67472994,670.8,669.59,2.22905272]
[1752150691440,1.67472994,670.8,669.6,2.22905272]
[1752150691642,1.67472994,670.8,669.61,1.671]
[1752150693243,1.67472994,670.79,669.61,1.671]
[1752150694646,1.67472994,670.79,669.61,3.90005272]
[1752150695047,1.67472994,670.79,669.61,1.671]
[1752150695347,1.67472994,670.78,669.63,2.22905272]
[1752150695543,1.67472994,670.74,669.72,2.22905272]
[1752150695848,1.67472994,670.74,669.73,2.22905272]
[1752150696044,1.67472994,670.73,669.73,2.22905272]
[1752150696357,1.67472994,670.74,669.73,2.22905272]
[1752150696844,1.67472994,670.74,669.74,2.22905272]
[1752150697050,1.67472994,670.74,669.72,2.22905272]
[1752150697350,1.67472994,670.78,669.63,2.22905272]
[1752150697950,1.67472994,670.79,669.61,3.90005272]
[1752150700245,1.67472994,670.73,669.61,1.671]
[1752150706159,1.67472994,670.72,669.61,1.671]
[1752150707259,1.67472994,670.7,669.64,2.22905272]
[1752150707757,1.67472994,670.68,669.69,2.22905272]
[1752150707959,1.67472994,670.68,669.61,1.671]
[1752150707960,1.67472994,670.69,669.66,2.22905272]
[1752150708260,1.67472994,670.69,669.65,2.22905272]
[1752150708561,1.67472994,670.69,669.66,2.22905272]
[1752150708961,1.67472994,670.69,669.65,2.22905272]
[1752150709460,1.67472994,670.69,669.66,2.22905272]
[1752150710059,1.67472994,670.68,669.68,2.22905272]
[1752150710359,1.67472994,670.68,669.69,2.22905272]
[1752150710661,0.25951654,671.08,669.61,1.671]
[1752150710662,1.67472994,670.67,669.71,2.22905272]
[1752150710958,1.67472994,670.7,669.73,2.22905272]
[1752150711564,1.67472994,670.69,669.74,2.22905272]
[1752150711958,1.67472994,670.69,669.75,2.22905272]
[1752150712461,1.67472994,670.69,669.76,2.22905272]
[1752150712964,1.67472994,670.71,669.71,2.22905272]
[1752150713465,1.67472994,670.71,669.72,2.22905272]
[1752150714465,1.67472994,670.7,669.72,2.22905272]
[1752150715167,1.67472994,670.69,669.72,2.22905272]
[1752150715461,1.67472994,670.69,669.74,2.22905272]
[1752150716365,1.67472994,670.69,669.76,2.22905272]
[1752150717465,1.67472994,670.68,669.78,2.22905272]
[1752150717767,1.67472994,670.67,669.79,2.22905272]
[1752150717969,1.67472994,670.67,669.8,2.22905272]
[1752150718570,1.67472994,670.65,669.81,2.22905272]
[1752150718872,1.67472994,670.65,669.82,2.22905272]
[1752150719068,1.67472994,670.64,669.82,2.22905272]
[1752150719667,1.67472994,670.63,669.85,2.22905272]
[1752150720971,1.67472994,670.6,669.82,2.22905272]
[1752150721267,1.67472994,670.59,669.83,2.22905272]
[1752150722272,1.67472994,670.59,669.84,2.22905272]
[1752150722469,1.67472994,670.59,669.83,2.22905272]
[1752150722872,1.67472994,670.56,669.9,2.22905272]
[1752150723971,1.67472994,670.55,669.9,2.22905272]
[1752150724369,1.67472994,670.56,669.87,2.22905272]
[1752150725073,1.67472994,670.56,669.61,1.671]
[1752150725074,1.67472994,670.56,669.88,2.22905272]
[1752150725270,1.67472994,670.55,669.88,2.22905272]
[1752150726170,1.67472994,670.55,669.89,2.22905272]
[1752150727282,1.67472994,670.54,669.89,2.22905272]
[1752150730178,1.67472994,670.54,669.9,2.22905272]
[1752150730677,1.67472994,670.54,669.61,1.671]
[1752150730678,1.67472994,670.54,669.88,2.22905272]
[1752150731274,1.67472994,670.54,669.89,2.22905272]
[1752150733375,1.67472994,670.55,669.87,2.22905272]
[1752150734076,1.67472994,670.55,669.88,2.22905272]
[1752150734276,1.67472994,670.54,669.9,2.22905272]
[1752150736893,1.67472994,670.54,669.91,1.851]
[1752150738080,1.67472994,670.56,669.91,1.851]
[1752150738284,1.67472994,670.57,669.91,1.851]
[1752150738485,1.67472994,670.52,669.91,1.851]
[1752150738786,1.67472994,670.57,669.91,1.851]
[1752150740387,1.67472994,670.56,669.91,1.851]
[1752150740686,1.67472994,670.57,669.91,1.851]
[1752150742892,1.67472994,670.52,669.91,1.851]
[1752150746297,1.67472994,670.52,669.91,1.851]
[1752150747796,1.67472994,670.51,669.91,1.851]
[1752150748292,1.67472994,670.5,669.91,1.851]
[1752150750598,1.67472994,670.49,669.91,1.851]
[1752150752504,1.67472994,670.47,669.91,1.851]
[1752150753705,1.67472994,670.48,669.91,1.851]
[1752150756014,1.67472994,670.5,669.91,1.851]
[1752150756203,1.67472994,670.49,669.91,1.851]
[1752150756808,1.67472994,670.5,669.91,1.851]
[1752150757301,1.67472994,670.49,669.91,1.851]
[1752150757805,1.67472994,670.5,669.91,1.851]
[1752150758005,1.67472994,670.51,669.91,1.851]
[1752150760810,1.67472994,670.48,669.91,1.851]
[1752150763412,1.67472994,670.49,669.91,1.851]
[1752150764513,1.67472994,670.48,669.91,1.851]
[1752150765313,1.67472994,670.47,669.91,1.851]
[1752150766014,1.67472994,670.47,669.77,2.22905272]
[1752150766211,1.67472994,670.46,669.8,2.22905272]
[1752150767812,1.67472994,670.44,669.83,2.22905272]
[1752150768215,1.67472994,670.45,669.82,2.22905272]
[1752150768414,1.67472994,670.45,669.81,2.22905272]
[1752150768614,1.67472994,670.46,669.79,2.22905272]
[1752150768815,1.67472994,670.47,669.79,2.22905272]
[1752150769812,1.67472994,670.47,669.8,2.281]
[1752150770115,1.67472994,670.51,669.83,2.22905272]
[1752150774627,1.67472994,670.51,669.84,2.22905272]
[1752150774926,1.67472994,670.51,669.82,2.22905272]
[1752150775124,1.67472994,670.52,669.82,2.22905272]
[1752150775626,1.6745706,670.52,669.82,2.22905272]
[1752150776227,1.6745706,670.51,669.82,2.22905272]
[1752150777323,1.6745706,670.51,669.83,2.22905272]
[1752150777828,1.6745706,670.52,669.83,2.22905272]
[1752150778225,1.6745706,670.51,669.84,2.22905272]
[1752150778530,1.6745706,670.5,669.87,2.22905272]
[1752150781034,1.6745706,670.5,669.88,2.22905272]
[1752150781429,1.6745706,670.49,669.88,2.22905272]
[1752150781733,1.6745706,670.49,669.8,2.281]
[1752150781734,1.6745706,670.49,669.89,2.22905272]
[1752150782931,1.6745706,670.52,669.83,2.22905272]
[1752150783136,1.6745706,670.51,669.83,2.22905272]
[1752150783531,1.6745706,670.5,669.82,2.22905272]
[1752150783735,1.6745706,670.51,669.8,2.281]
[1752150784735,1.6745706,670.51,669.8,4.51005272]
[1752150785030,1.6745706,670.51,669.8,2.281]
[1752150785334,1.6745706,670.51,669.8,4.51005272]
[1752150785532,1.6745706,670.54,669.8,2.281]
[1752150787844,1.6745706,670.53,669.74,2.22905272]
[1752150789332,1.6745706,670.48,669.69,2.22905272]
[1752150789533,1.6745706,670.53,669.56,2.22905272]
[1752150789733,1.6745706,670.62,669.62,2.22905272]
[1752150790337,1.6745706,670.61,669.64,2.22905272]
[1752150790534,1.6745706,670.61,669.65,2.22905272]
[1752150790735,1.6745706,670.59,669.69,2.22905272]
[1752150790938,1.6745706,670.6,669.69,2.22905272]
[1752150791238,1.6745706,670.59,669.71,2.22905272]
[1752150791735,1.6745706,670.58,669.72,2.22905272]
[1752150792436,1.6745706,670.56,669.79,2.22905272]